bitfinex/quotes_BTCUSD_20250110
["timestamp","ask_amount","ask_price","bid_price","bid_amount"]
[1736502163565,0.32518142,95077.0,95073.0,0.00095174]
[1736502163772,0.31918142,95077.0,95073.0,0.00095174]
[1736502164169,0.32518142,95077.0,95073.0,0.00095174]
[1736502164375,0.32518142,95077.0,95069.0,0.14132942]
[1736502164586,0.32518142,95077.0,95070.0,0.00095838]
[1736502164802,0.32318142,95077.0,95071.0,0.01014554]
[1736502165237,0.32518142,95077.0,95071.0,0.01014554]
[1736502165593,0.31918142,95077.0,95071.0,0.01014554]
[1736502165794,0.32318142,95077.0,95071.0,0.01014554]
[1736502165968,0.31918142,95077.0,95071.0,0.01014554]
[1736502166195,0.31918142,95077.0,95072.0,0.00095395]
[1736502166369,0.32518142,95077.0,95072.0,0.00095395]
[1736502166946,0.31918142,95077.0,95072.0,0.00095395]
[1736502167417,0.31918142,95077.0,95073.0,0.210364]
[1736502167594,0.31918142,95077.0,95074.0,0.00094952]
[1736502167975,0.31718142,95077.0,95074.0,0.00094952]
[1736502168323,0.31918142,95077.0,95074.0,0.00094952]
[1736502168703,0.31718142,95077.0,95074.0,0.00094952]
[1736502169222,0.31918142,95077.0,95074.0,0.00094952]
[1736502171731,0.31918142,95077.0,95071.0,0.01014554]
[1736502171935,0.31918142,95077.0,95075.0,0.00094731]
[1736502172149,0.31918142,95077.0,95071.0,0.01014554]
[1736502172309,0.31918142,95077.0,95076.0,0.0009451]
[1736502172510,0.31718142,95077.0,95071.0,0.01014554]
[1736502172718,0.31718142,95077.0,95076.0,0.0009451]
[1736502172918,0.31918142,95077.0,95071.0,0.01014554]
[1736502173117,0.31918142,95077.0,95076.0,0.0009451]
[1736502173319,0.31918142,95077.0,95071.0,0.01014554]
[1736502173583,0.35109956,95077.0,95067.0,0.14132942]
[1736502173760,0.35109956,95077.0,95065.0,0.35171042]
[1736502173975,0.35109956,95077.0,95065.0,0.210381]
[1736502174183,0.35509956,95077.0,95065.0,0.210381]
[1736502174723,0.35709956,95077.0,95065.0,0.210381]
[1736502174906,0.35709956,95077.0,95065.0,0.420763]
[1736502175105,0.35509956,95077.0,95065.0,0.420763]
[1736502175313,0.35509956,95077.0,95067.0,0.210377]
[1736502175470,0.31918142,95077.0,95067.0,0.210377]
[1736502175676,0.31918142,95077.0,95069.0,0.210373]
[1736502175927,0.32518142,95077.0,95069.0,0.210373]
[1736502176091,0.32518142,95077.0,95070.0,0.00095838]
[1736502176286,0.32318142,95077.0,95070.0,0.01110638]
[1736502176501,0.10429976,95076.0,95070.0,0.01110638]
[1736502177401,0.10429976,95076.0,95065.0,0.210381]
[1736502177618,0.10429976,95076.0,95066.0,0.00096723]
[1736502177864,0.10429976,95076.0,95067.0,0.210377]
[1736502178178,0.10429976,95076.0,95068.0,0.0009628]
[1736502178411,0.31718142,95075.0,95068.0,0.0009628]
[1736502178626,0.17537348,95074.0,95063.0,0.14132942]
[1736502178825,0.17537348,95074.0,95064.0,0.00097165]
[1736502179860,0.17537348,95074.0,95065.0,0.01015186]
[1736502180151,0.18037348,95074.0,95065.0,0.01015186]
[1736502180364,0.17537348,95074.0,95065.0,0.01015186]
[1736502180575,0.0809,95072.0,95060.0,0.000983]
[1736502180785,0.10429976,95071.0,95060.0,0.000983]
[1736502181011,0.210373,95069.0,95060.0,0.000983]
[1736502181225,0.10429976,95068.0,95060.0,0.000983]
[1736502181430,0.10429976,95068.0,95058.0,0.0001706]
[1736502181841,0.10429976,95068.0,95059.0,0.210395]
[1736502182272,0.10429976,95068.0,95059.0,0.42079]
[1736502182889,0.11029976,95068.0,95059.0,0.42079]
[1736502183606,0.10429976,95068.0,95063.0,0.210386]
[1736502183809,0.11496935,95068.0,95063.0,0.210386]
[1736502184516,0.31718142,95067.0,95063.0,0.210386]
[1736502184688,0.10429976,95066.0,95063.0,0.210386]
[1736502186308,0.10929976,95066.0,95063.0,0.210386]
[1736502186502,0.11029976,95066.0,95063.0,0.210386]
[1736502187162,0.11029976,95066.0,95060.0,0.210393]
[1736502188092,0.10929976,95066.0,95060.0,0.210393]
[1736502188269,0.10529976,95066.0,95060.0,0.210393]
[1736502188667,0.11029976,95066.0,95060.0,0.210393]
[1736502190361,0.31718142,95065.0,95060.0,0.420786]
[1736502190558,0.31718142,95063.0,95060.0,0.420786]
[1736502191821,0.31818142,95063.0,95060.0,0.42083465]
[1736502193331,0.32218142,95063.0,95060.0,0.42083465]
[1736502194928,0.32218142,95063.0,95062.0,0.210389]
[1736502195381,0.32218142,95063.0,95062.0,0.22055068]
[1736502195781,0.32118142,95063.0,95062.0,0.22055068]
[1736502196628,0.31718142,95063.0,95062.0,0.22055068]
[1736502196833,0.32118142,95063.0,95062.0,0.22055068]
[1736502197211,0.32218142,95063.0,95062.0,0.22055068]
[1736502199278,0.42648118,95063.0,95062.0,0.01016168]
[1736502199528,0.75209626,95063.0,95062.0,0.01016168]
[1736502199772,0.75209626,95063.0,95060.0,4.865e-05]
[1736502199773,0.3819,95061.0,95060.0,4.865e-05]
[1736502200006,0.38619976,95061.0,95060.0,4.865e-05]
[1736502200896,0.15409976,95061.0,95060.0,4.865e-05]
[1736502201061,0.16309976,95061.0,95060.0,4.865e-05]
[1736502201673,0.16709976,95061.0,95060.0,4.865e-05]
[1736502201879,0.013,95061.0,95060.0,4.865e-05]
[1736502202092,0.33018142,95061.0,95060.0,4.865e-05]
[1736502202282,0.18950691,95080.0,95060.0,0.03324051]
[1736502202283,0.31718142,95079.0,95060.0,0.03324051]
[1736502202464,0.31718142,95079.0,95076.0,0.210356]
[1736502202656,0.31718142,95079.0,95077.0,0.00118482]
[1736502202939,0.31718142,95079.0,95078.0,0.210353]
[1736502203112,0.31718142,95079.0,95078.0,0.21903741]
[1736502203951,0.32318142,95079.0,95078.0,0.21903741]
[1736502204127,0.31718142,95079.0,95078.0,0.20603739]
[1736502205651,0.31918142,95079.0,95078.0,0.20603739]
[1736502209694,0.31918142,95079.0,95078.0,0.19703737]
[1736502212378,0.31718142,95079.0,95078.0,0.19703737]
[1736502212602,0.31718142,95079.0,95078.0,0.20003737]
[1736502214006,0.31718142,95079.0,95078.0,0.19303735]
[1736502218061,0.31718142,95079.0,95078.0,0.19103735]
[1736502218499,0.31718142,95079.0,95078.0,0.18803735]
[1736502219002,0.31718142,95079.0,95078.0,0.21103735]
[1736502219209,0.31718142,95079.0,95078.0,0.20303733]
[1736502219433,0.31718142,95079.0,95078.0,0.20503733]
[1736502219860,0.31718142,95079.0,95078.0,0.20303733]
[1736502220297,0.31718142,95079.0,95078.0,0.20603733]
[1736502220423,0.31718142,95079.0,95078.0,0.20503733]
[1736502220832,0.31718142,95079.0,95078.0,0.20703733]
[1736502221506,0.31718142,95079.0,95078.0,0.31133709]
[1736502221711,0.31718142,95079.0,95078.0,0.38943709]
[1736502223311,0.31718142,95101.0,95079.0,0.023]
[1736502223493,0.31718142,95101.0,95096.0,0.210312]
[1736502223795,0.31718142,95101.0,95081.0,0.023]
[1736502224003,0.31718142,95101.0,95097.0,0.43038103]
[1736502224211,0.31718142,95101.0,95097.0,0.21031]
[1736502224425,0.31718142,95101.0,95098.0,0.00975962]
[1736502224576,0.31723258,95101.0,95098.0,0.00975962]
[1736502225150,0.31923258,95101.0,95098.0,0.00975962]
[1736502225492,0.31923258,95101.0,95091.0,0.210324]
[1736502225904,0.32623258,95101.0,95096.0,0.001]
[1736502226125,0.31923258,95101.0,95093.0,0.21032]
[1736502226312,0.31923258,95101.0,95097.0,0.00976003]
[1736502226514,0.32623258,95101.0,95098.0,0.001]
[1736502226840,0.31723258,95101.0,95093.0,0.21032]
[1736502227038,0.32623258,95101.0,95096.0,0.001]
[1736502227337,0.32623258,95101.0,95097.0,0.00976739]
[1736502227815,0.32423258,95101.0,95093.0,0.21032]
[1736502227990,0.32623258,95101.0,95098.0,0.00976698]
[1736502228191,0.32623258,95101.0,95093.0,0.21032]
[1736502228393,0.32623258,95101.0,95099.0,0.00976657]
[1736502228568,0.32423258,95101.0,95093.0,0.21032]
[1736502228794,0.33123258,95101.0,95100.0,0.00976615]
[1736502229092,0.210304,95100.0,95085.0,0.41167298]
[1736502229232,0.210314,95096.0,95093.0,0.001]
[1736502229700,0.210314,95096.0,95081.0,0.210345]
[1736502229918,0.0464,95095.0,95081.0,0.210345]
[1736502230161,0.0464,95095.0,95082.0,0.00977256]
[1736502230429,0.210328,95090.0,95082.0,0.00977256]
[1736502230895,0.210328,95090.0,95083.0,0.00977215]
[1736502231386,0.210318,95094.0,95081.0,0.210345]
[1736502231624,0.002,95090.0,95084.0,0.00977174]
[1736502231768,0.002,95090.0,95082.0,0.00977256]
[1736502231968,0.002,95090.0,95085.0,0.00977132]
[1736502232196,0.002,95090.0,95081.0,0.210345]
[1736502232197,0.002,95090.0,95086.0,0.00977091]
[1736502232402,0.002,95090.0,95081.0,0.211345]
[1736502232740,0.008,95090.0,95084.0,0.001]
[1736502233177,0.210318,95094.0,95085.0,0.00977132]
[1736502233352,0.008,95090.0,95086.0,0.001]
[1736502233580,0.002,95090.0,95081.0,0.210345]
[1736502233919,0.210318,95094.0,95081.0,0.210345]
[1736502234146,0.210318,95094.0,95083.0,0.210342]
[1736502234305,0.002,95090.0,95083.0,0.210342]
[1736502234512,0.002,95090.0,95084.0,0.00977174]
[1736502234837,0.210318,95094.0,95084.0,0.00977174]
[1736502235135,0.008,95090.0,95084.0,0.01077174]
[1736502235339,0.31718142,95089.0,95084.0,0.00977174]
[1736502236753,0.31718142,95089.0,95084.0,0.01077174]
[1736502237830,0.31918142,95089.0,95084.0,0.01077174]
[1736502238670,0.31918142,95089.0,95084.0,0.00977174]
[1736502238878,0.31918142,95089.0,95081.0,0.210345]
[1736502239099,0.32518142,95089.0,95084.0,0.001]
[1736502239515,0.32518142,95089.0,95085.0,0.00737865]
[1736502239730,0.31718142,95089.0,95085.0,0.00737865]
[1736502239935,0.31718142,95089.0,95081.0,0.210345]
[1736502240139,0.32518142,95089.0,95081.0,0.211345]
[1736502240311,0.31918142,95089.0,95083.0,0.210342]
[1736502240541,0.31718142,95089.0,95083.0,0.210342]
[1736502240672,0.32318142,95089.0,95085.0,0.001]
[1736502240877,0.32518142,95089.0,95085.0,0.001]
[1736502241299,0.31718142,95088.0,95085.0,0.001]
[1736502242463,0.31718142,95088.0,95082.0,0.00831184]
[1736502243290,0.37381526,95088.0,95082.0,0.00831184]
[1736502243449,0.32218142,95088.0,95085.0,0.001]
[1736502243647,0.31718142,95087.0,95078.0,0.210353]
[1736502243827,0.31718142,95087.0,95079.0,0.00737928]
[1736502244040,0.31718142,95087.0,95082.0,0.001]
[1736502244274,0.31718142,95087.0,95083.0,0.00738026]
[1736502244945,0.31718142,95087.0,95080.0,0.210349]
[1736502245158,0.31718142,95087.0,95084.0,0.0073805]
[1736502245320,0.31718142,95087.0,95080.0,0.210349]
[1736502245545,0.31718142,95087.0,95085.0,0.00738213]
[1736502245748,0.31718142,95087.0,95084.0,0.210338]
[1736502245958,0.31718142,95087.0,95086.0,0.00738237]
[1736502246178,0.31718142,95087.0,95085.0,0.00738213]
[1736502246379,0.31818142,95087.0,95086.0,0.00738237]
[1736502246789,0.31718142,95087.0,95086.0,0.00738237]
[1736502246997,0.32218142,95087.0,95084.0,0.211338]
[1736502247233,0.31818142,95087.0,95086.0,0.00738139]
[1736502247443,0.31818142,95087.0,95086.0,0.001]
[1736502247643,0.32318142,95087.0,95086.0,0.0099187]
[1736502247878,0.32218142,95087.0,95086.0,0.001]
[1736502248290,0.32218142,95087.0,95086.0,0.0099187]
[1736502248802,0.31718142,95087.0,95086.0,0.0089187]
[1736502249215,0.31718142,95087.0,95084.0,0.19158339]
[1736502249216,0.32218142,95087.0,95084.0,0.19258339]
[1736502249348,0.31818142,95087.0,95086.0,0.00891835]
[1736502249554,0.31818142,95087.0,95085.0,0.00891927]
[1736502249778,0.32218142,95087.0,95086.0,0.00991886]
[1736502250279,0.32218142,95087.0,95086.0,0.001]
[1736502250280,0.32318142,95087.0,95086.0,0.001]
[1736502250502,0.50748118,95087.0,95086.0,0.001]
[1736502251526,0.57345449,95087.0,95086.0,0.001]
[1736502252322,0.50748118,95087.0,95086.0,0.001]
[1736502252723,0.49808547,95087.0,95086.0,0.001]
[1736502260734,0.41808547,95087.0,95086.0,0.001]
[1736502263022,0.69928547,95087.0,95086.0,0.001]
[1736502263415,0.79928547,95087.0,95086.0,0.001]
[1736502263637,0.90358523,95087.0,95086.0,0.001]
[1736502263973,0.1,95084.0,95060.0,0.20239298]
[1736502264183,0.210371,95071.0,95060.0,0.20239298]
[1736502264357,0.10429976,95070.0,95061.0,0.00991022]
[1736502264570,0.10429976,95070.0,95060.0,0.20239298]
[1736502265041,0.10429976,95070.0,95061.0,0.00992212]
[1736502265423,0.10429976,95070.0,95061.0,4.865e-05]
[1736502265636,0.10429976,95070.0,95062.0,0.210389]
[1736502265837,0.10429976,95070.0,95063.0,0.00097387]
[1736502266005,0.005,95070.0,95065.0,0.21038]
[1736502266647,0.005,95070.0,95063.0,0.00991687]
[1736502266847,0.001,95070.0,95063.0,0.00991687]
[1736502267050,0.10429976,95069.0,95063.0,0.00991687]
[1736502267826,0.30778571,95067.0,95063.0,0.00991687]
[1736502268055,0.10429976,95066.0,95063.0,0.00991687]
[1736502268336,0.10429976,95066.0,95061.0,4.865e-05]
[1736502268854,0.10429976,95066.0,95062.0,0.00991949]
[1736502269508,0.10829976,95066.0,95062.0,0.00991949]
[1736502269716,0.10429976,95066.0,95062.0,0.00991949]
[1736502270062,0.10929976,95066.0,95062.0,0.00991949]
[1736502270326,0.10529976,95066.0,95062.0,0.00991949]
[1736502271193,0.30778571,95065.0,95062.0,0.00991949]
[1736502271409,0.41208547,95065.0,95062.0,0.00991949]
[1736502271927,0.41208547,95065.0,95061.0,4.865e-05]
[1736502272612,0.10429976,95064.0,95061.0,4.865e-05]
[1736502272825,0.210386,95063.0,95061.0,4.865e-05]
[1736502273027,0.10429976,95062.0,95061.0,4.865e-05]
[1736502274110,0.10429976,95062.0,95049.0,0.20180583]
[1736502274430,0.10429976,95062.0,95048.0,0.2926886]
[1736502274431,0.30778571,95061.0,95050.0,0.00995196]
[1736502274638,0.52508676,95060.0,95050.0,0.00995196]
[1736502274864,0.31469276,95060.0,95050.0,0.00995196]
[1736502275470,0.30778571,95057.0,95050.0,0.00995196]
[1736502275727,0.10429976,95056.0,95048.0,0.0001706]
[1736502275930,0.04907341,95055.0,95048.0,0.0001706]
[1736502276134,0.210408,95053.0,95049.0,0.00995458]
[1736502276305,0.10429976,95052.0,95049.0,0.00995458]
[1736502277058,0.210413,95051.0,95049.0,0.00995458]
[1736502277259,0.10429976,95050.0,95048.0,0.0001706]
[1736502277490,0.14330744,95050.0,95048.0,0.0001706]
[1736502277908,0.210417,95049.0,95048.0,0.0001706]
[1736502278788,0.31471676,95049.0,95048.0,0.0001706]
[1736502279182,0.210424,95046.0,95036.0,0.0001706]
[1736502279385,0.210428,95044.0,95036.0,0.0001706]
[1736502279591,0.210428,95044.0,95037.0,0.00998612]
[1736502279592,0.08823206,95043.0,95037.0,0.00998612]
[1736502279786,0.210433,95042.0,95037.0,0.00998612]
[1736502279990,0.210433,95042.0,95036.0,0.0001706]
[1736502280393,0.41208547,95041.0,95037.0,0.0089547]
[1736502280801,0.41208547,95041.0,95036.0,0.0001706]
[1736502281209,0.210437,95040.0,95036.0,0.0001706]
[1736502281431,0.10429976,95039.0,95036.0,0.0011706]
[1736502282009,0.210442,95038.0,95036.0,0.0011706]
[1736502282206,0.10429976,95037.0,95036.0,0.0011706]
[1736502282788,0.10429976,95037.0,95036.0,0.0001706]
[1736502282995,0.18759621,95037.0,95036.0,0.0001706]
[1736502283577,0.18959621,95037.0,95036.0,0.0001706]
[1736502284184,0.10629976,95037.0,95036.0,0.0001706]
[1736502285454,0.10429976,95037.0,95036.0,0.0001706]
[1736502285860,0.10929976,95037.0,95036.0,0.0001706]
[1736502285989,0.10429976,95037.0,95036.0,0.0001706]
[1736502286195,0.41308547,95037.0,95036.0,0.0001706]
[1736502286423,0.51470888,95037.0,95036.0,0.0001706]
[1736502286622,0.51370888,95037.0,95036.0,0.0001706]
[1736502286821,0.52070888,95037.0,95036.0,0.0001706]
[1736502287059,0.52270888,95037.0,95036.0,0.0001706]
[1736502287227,0.51570888,95037.0,95036.0,0.0001706]
[1736502287447,0.52270888,95037.0,95036.0,0.0001706]
[1736502295643,0.56960888,95037.0,95036.0,0.0001706]
[1736502296573,0.64920888,95037.0,95036.0,0.0001706]
[1736502299088,0.30778571,95036.0,95014.0,0.023]
[1736502299295,0.210464,95028.0,95015.0,0.210493]
[1736502299461,0.10429976,95027.0,95015.0,0.21949286]
[1736502299657,0.210469,95026.0,95015.0,0.00899986]
[1736502299866,0.10429976,95025.0,95015.0,0.00899986]
[1736502300500,0.31476976,95025.0,95015.0,0.00948666]
[1736502300704,0.210475,95023.0,95015.0,0.00948666]
[1736502300901,0.10429976,95022.0,95015.0,0.00948666]
[1736502301604,0.210479,95021.0,95015.0,0.00948666]
[1736502301815,0.30778571,95016.0,95015.0,0.00948666]
[1736502302013,0.56246082,95016.0,95015.0,0.00948666]
[1736502302222,0.56246082,95016.0,95015.0,0.0004868]
[1736502302450,0.92295082,95016.0,95015.0,0.0014868]
[1736502303013,0.77257547,95016.0,95015.0,0.0004868]
[1736502303329,0.41408547,95016.0,95015.0,0.0004868]
[1736502303532,0.42108547,95016.0,95015.0,0.0004868]
[1736502315976,0.61778547,95016.0,95015.0,0.0004868]
[1736502317992,0.61078547,95016.0,95015.0,0.0004868]
[1736502318175,0.72408523,95016.0,95015.0,0.0004868]
[1736502318301,0.72208523,95016.0,95015.0,0.0004868]
[1736502318501,0.71308523,95016.0,95015.0,0.0004868]
[1736502318743,0.72608523,95016.0,95015.0,0.0004868]
[1736502319271,0.51830971,95001.0,95000.0,0.19248638]
[1736502319468,0.67444044,95001.0,95000.0,0.19248638]
[1736502319724,0.67444044,95001.0,95000.0,0.20306205]
[1736502319923,0.67444044,95001.0,95000.0,0.19248638]
[1736502320068,0.67444044,95001.0,95000.0,0.20306205]
[1736502321145,0.88440934,95001.0,95000.0,0.19248638]
[1736502321717,0.88640934,95001.0,95000.0,0.19248638]
[1736502321921,0.89440934,95001.0,95000.0,0.19248638]
[1736502323185,0.99440934,95001.0,95000.0,0.19248638]
[1736502323822,1.07200934,95001.0,95000.0,0.19248638]
[1736502324029,0.46529933,94999.0,94997.0,8.53e-05]
[1736502324231,0.46529933,94999.0,94993.0,0.09117058]
[1736502324232,0.35,94994.0,94993.0,0.09117058]
[1736502324431,0.53559976,94994.0,94993.0,0.09117058]
[1736502324646,0.58509976,94994.0,94993.0,0.0666992]
[1736502324896,0.58509976,94994.0,94993.0,0.04864412]
[1736502325059,0.68939952,94994.0,94993.0,0.04864412]
[1736502325677,0.69339952,94994.0,94993.0,0.04864412]
[1736502326151,0.69839952,94994.0,94993.0,0.04864412]
[1736502326336,0.68939952,94994.0,94993.0,0.04864412]
[1736502326537,0.69339952,94994.0,94993.0,0.04864412]
[1736502327543,0.59339952,94994.0,94993.0,0.04864412]
[1736502327732,0.26729976,94994.0,94993.0,0.04864412]
[1736502328301,0.38259909,94994.0,94993.0,0.04864412]
[1736502329135,0.38259909,94994.0,94993.0,0.13084412]
[1736502329896,0.12829933,94994.0,94993.0,0.1448441]
[1736502330296,0.12829933,94994.0,94993.0,0.15283401]
[1736502330647,0.11929933,94994.0,94993.0,0.15283401]
[1736502331102,0.12429933,94994.0,94993.0,0.15283401]
[1736502331275,0.12629933,94994.0,94993.0,0.15283401]
[1736502331474,0.11729933,94994.0,94993.0,0.15283401]
[1736502331679,0.12029933,94994.0,94993.0,0.15283401]
[1736502331923,0.11829933,94994.0,94993.0,0.15283401]
[1736502332301,0.11829933,94994.0,94993.0,0.19963401]
[1736502334113,0.11529933,94994.0,94993.0,0.19963401]
[1736502334320,0.11529933,94994.0,94993.0,0.20063401]
[1736502335090,0.11529933,94994.0,94993.0,0.19963401]
[1736502335456,0.11629933,94994.0,94993.0,0.20063401]
[1736502335654,0.12792926,94994.0,94993.0,0.20063401]
[1736502336491,0.11629933,94994.0,94993.0,0.20063401]
[1736502337113,0.11529933,94994.0,94993.0,0.19963401]
[1736502337517,0.11529933,94994.0,94993.0,0.20063401]
[1736502337953,0.11529933,94994.0,94993.0,0.19963401]
[1736502338100,0.11529933,94994.0,94993.0,0.20063401]
[1736502339075,0.12682926,94994.0,94993.0,0.20063401]
[1736502339458,0.11529933,94994.0,94993.0,0.20063401]
[1736502342262,0.11529933,94994.0,94993.0,0.21130136]
[1736502342637,0.11529933,95015.0,95014.0,0.210495]
[1736502342855,0.11529933,95015.0,95014.0,0.360995]
[1736502343036,0.11529933,95015.0,95014.0,0.36207737]
[1736502343430,0.11529933,95015.0,95014.0,0.31537737]
[1736502343885,0.12229933,95015.0,95014.0,0.31537737]
[1736502344081,0.11529933,95015.0,95014.0,0.30637735]
[1736502344512,0.11629933,95015.0,95014.0,0.30737735]
[1736502344710,0.11629933,95015.0,95014.0,0.30637735]
[1736502344909,0.11629933,95015.0,95014.0,0.3158633]
[1736502346015,0.11629933,95015.0,95014.0,0.3168633]
[1736502346644,0.11529933,95015.0,95014.0,0.3168633]
[1736502346838,0.11629933,95015.0,95014.0,0.3168633]
[1736502347605,0.11629933,95015.0,95014.0,0.3158633]
[1736502347841,0.11629933,95015.0,95014.0,0.3178633]
[1736502349069,0.11629933,95015.0,95014.0,0.1073683]
[1736502349070,0.12797787,95015.0,95014.0,0.1073683]
[1736502349280,0.12797787,95015.0,95014.0,0.03556832]
[1736502349484,0.12797787,95015.0,95014.0,0.01256832]
[1736502349681,0.23227763,95015.0,95014.0,0.01256832]
[1736502349951,0.23227763,95015.0,95014.0,0.002]
[1736502350772,0.23227763,95015.0,94995.0,0.0009861]
[1736502350773,0.210508,95009.0,94996.0,0.210535]
[1736502350983,0.14955027,95008.0,94997.0,0.00112003]
[1736502351195,0.14955027,95008.0,94998.0,0.23353]
[1736502351402,0.14955027,95008.0,94999.0,0.00947339]
[1736502351613,0.14955027,95008.0,95000.0,0.023]
[1736502351819,0.05705553,95007.0,95000.0,0.023]
[1736502352018,0.11529933,95005.0,95002.0,0.023]
[1736502352393,0.11529933,95005.0,95004.0,0.023]
[1736502352600,0.11529933,95005.0,95004.0,0.03247131]
[1736502353507,0.11529933,95005.0,95004.0,0.03357583]
[1736502353718,0.17454064,95005.0,95004.0,0.03357583]
[1736502354236,0.17454064,95005.0,95004.0,0.02457581]
[1736502354385,0.12129933,95005.0,95004.0,0.02457581]
[1736502355218,0.12229933,95005.0,95004.0,0.02457581]
[1736502355659,0.12229933,95005.0,94998.0,0.21053]
[1736502356027,0.12229933,95005.0,94999.0,0.00947675]
[1736502356469,0.11629933,95005.0,95000.0,0.023]
[1736502356673,0.04881626,95004.0,95000.0,0.023]
[1736502356868,0.04881626,95004.0,95002.0,0.023]
[1736502357426,0.04881626,95004.0,94998.0,0.21053]
[1736502357427,0.16411559,95004.0,95003.0,0.03247556]
[1736502357553,0.16411559,95004.0,95003.0,0.02982998]
[1736502357779,0.26841535,95004.0,95003.0,0.00947555]
[1736502357989,0.27441535,95004.0,94997.0,0.00112003]
[1736502358193,0.19350418,95003.0,94997.0,0.00112003]
[1736502358393,0.19350418,95003.0,94998.0,0.00949511]
[1736502359114,0.19350418,95003.0,94998.0,0.02349509]
[1736502359328,0.19350418,95003.0,94998.0,0.03099469]
[1736502359762,0.19450418,95003.0,94998.0,0.03099469]
[1736502360790,0.07877669,95002.0,94998.0,0.03099469]
[1736502361006,0.11529933,95000.0,94998.0,0.24152369]
[1736502361232,0.10429976,94999.0,94998.0,0.24152369]
[1736502361465,0.21959909,95000.0,94998.0,0.24152369]
[1736502362731,0.004,94999.0,94998.0,0.24152369]
[1736502362938,0.21959909,95000.0,94998.0,0.24152369]
[1736502363348,0.22359909,95000.0,94998.0,0.24152369]
[1736502363551,0.21959909,95000.0,94998.0,0.24152369]
[1736502364051,0.004,94999.0,94998.0,0.24152369]
[1736502364211,0.21959909,95000.0,94998.0,0.2180286]
[1736502365196,0.11529933,95000.0,94998.0,0.2180286]
[1736502365506,0.11929933,95000.0,94998.0,0.2180286]
[1736502368866,0.23552902,95000.0,94998.0,0.0074996]
[1736502369110,0.23552902,95000.0,94996.0,0.023]
[1736502369290,0.23552902,95000.0,94999.0,0.0076015]
[1736502369438,0.23552902,95000.0,94996.0,0.023]
[1736502369659,0.23552902,95000.0,94999.0,0.00676591]
[1736502369884,0.23152902,95000.0,94994.0,0.023]
[1736502370084,0.0235529,94999.0,94994.0,0.023]
[1736502370285,0.0235529,94999.0,94996.0,0.023]
[1736502370714,0.0235529,94999.0,94997.0,0.00676909]
[1736502372627,0.0275529,94999.0,94997.0,0.00676909]
[1736502372852,0.02590819,94998.0,94997.0,0.02976909]
[1736502373031,0.14120752,94998.0,94997.0,0.02976909]
[1736502374149,0.24550728,94998.0,94982.0,0.210566]
[1736502374334,0.64066409,94997.0,94982.0,0.210566]
[1736502374504,0.210537,94995.0,94982.0,0.210566]
[1736502374716,0.10429976,94994.0,94980.0,0.292569]
[1736502374918,0.10429976,94994.0,94984.0,0.2115507]
[1736502375105,0.10429976,94994.0,94984.0,0.0009897]
[1736502375463,0.21959909,94994.0,94984.0,0.0009897]
[1736502375777,0.21959909,94994.0,94993.0,0.0406441]
[1736502376386,0.30059909,94994.0,94993.0,0.0406441]
[1736502376592,0.39202961,94994.0,94993.0,0.0406441]
[1736502377017,0.39202961,94994.0,94993.0,0.0396441]
[1736502377253,0.40102961,94994.0,94993.0,0.0396441]
[1736502377804,0.39902961,94994.0,94993.0,0.0396441]
[1736502378016,0.40102961,94994.0,94993.0,0.0396441]
[1736502378417,0.39402961,94994.0,94993.0,0.0396441]
[1736502378840,0.40202961,94994.0,94993.0,0.0396441]
[1736502379224,0.40202961,94994.0,94993.0,0.03064408]
[1736502379826,0.421082,94993.0,94980.0,0.023]
[1736502380052,0.210546,94991.0,94979.0,0.210572]
[1736502380254,0.10429976,94990.0,94981.0,0.0053745]
[1736502380428,0.10429976,94990.0,94980.0,0.00538674]
[1736502380633,0.10429976,94990.0,94981.0,0.210568]
[1736502380835,0.10429976,94990.0,94977.0,0.210576]
[1736502381068,0.002,94993.0,94982.0,0.00538591]
[1736502381264,0.10429976,94992.0,94984.0,0.210561]
[1736502381709,0.10429976,94992.0,94986.0,0.210557]
[1736502381893,0.001,94990.0,94986.0,0.210557]
[1736502382106,0.001,94990.0,94987.0,0.00539191]
[1736502383122,0.001,94990.0,94984.0,0.210561]
[1736502383356,0.04311341,94989.0,94988.0,0.0070706]
[1736502383542,0.04311341,94989.0,94984.0,0.210561]
[1736502383836,0.04311341,94989.0,94985.0,0.0070785]
[1736502384444,0.04311341,94989.0,94986.0,0.421113]
[1736502384653,0.04311341,94989.0,94986.0,0.210556]
[1736502384796,0.02627125,94988.0,94986.0,0.210556]
[1736502384994,0.11529933,94987.0,94986.0,0.210556]
[1736502385853,0.11529933,94987.0,94985.0,0.0070785]
[1736502386287,0.11529933,94987.0,94985.0,0.00722448]
[1736502388206,0.12029933,94987.0,94985.0,0.00722448]
[1736502388412,0.02508703,94986.0,94985.0,0.00722448]
[1736502389965,0.03008703,94986.0,94985.0,0.00722448]
[1736502391028,0.14538636,94986.0,94985.0,0.00722448]
[1736502391976,0.61024312,94986.0,94985.0,0.00722448]
[1736502392345,0.61024312,94986.0,94985.0,0.00014598]
[1736502406439,0.43515609,94986.0,94985.0,0.00014598]
[1736502406638,0.12029933,94986.0,94985.0,0.00014598]
[1736502407223,0.12029933,94986.0,94985.0,0.08353459]
[1736502407487,0.12029933,94986.0,94985.0,0.07644598]
[1736502407713,0.12029933,94986.0,94985.0,0.08184883]
[1736502408643,0.13232926,94986.0,94985.0,0.08184883]
[1736502410110,0.12029933,94986.0,94985.0,0.08184883]
[1736502416552,0.12029933,94986.0,94985.0,0.00554883]
[1736502416976,0.12029933,94986.0,94985.0,0.00014598]
[1736502417146,0.12029933,94986.0,94985.0,0.00552048]
[1736502417346,0.12029933,94986.0,94985.0,0.00014598]
[1736502417637,0.13916974,94986.0,94985.0,0.00552048]
[1736502417855,0.13916974,94986.0,94985.0,0.00014598]
[1736502418057,0.13916974,94986.0,94985.0,0.00552048]
[1736502418193,0.13916974,94986.0,94985.0,0.00014598]
[1736502418428,0.12029933,94986.0,94985.0,0.00552236]
[1736502437307,0.12029933,94986.0,94985.0,0.02852236]
[1736502438382,0.11529933,94986.0,94985.0,0.02852236]
[1736502438815,0.11529933,94986.0,94985.0,0.03152236]
[1736502438992,0.11529933,94986.0,94985.0,0.03052236]
[1736502439401,0.11529933,94986.0,94985.0,0.03252236]
[1736502439755,0.11529933,94986.0,94985.0,0.03052236]
[1736502439989,0.11529933,94986.0,94985.0,0.02952236]
[1736502440394,0.11529933,94986.0,94985.0,0.04402722]
[1736502440629,0.11529933,94986.0,94985.0,0.03320812]
[1736502440836,0.12682926,94986.0,94985.0,0.03320812]
[1736502441436,0.12682926,94986.0,94985.0,0.03120812]
[1736502441806,0.12682926,94986.0,94985.0,0.03320812]
[1736502449426,0.11529933,94986.0,94985.0,0.03320812]
[1736502457903,0.11529933,94986.0,94985.0,0.01020812]
[1736502465172,0.21959909,94986.0,94985.0,0.01020812]